fUSD/lending_fUSD_20250517
["ID","MTS","AMOUNT","RATE_DAILY","PERIOD"]
[361363670,1747516244985,-151.0,0.000248,7]
[361363671,1747516244995,-153.840519,0.000248,7]
[361363672,1747516245005,-151.0,0.000248,7]
[361363673,1747516245015,-151.0,0.000248,7]
[361363674,1747516245024,-625268.793634,0.000248,3]
[361363675,1747516245035,-151.0,0.000248,7]
[361363676,1747516245044,-151.0,0.000248,7]
[361363677,1747516245056,-151.0,0.000248,7]
[361363678,1747516245065,-151.0,0.000248,7]
[361363679,1747516245075,-151.0,0.000248,7]
[361363680,1747516245085,-3866.023047,0.000248,7]
[361363681,1747516245094,-3866.023047,0.000248,7]
[361363682,1747516245104,-204.897675,0.000248,7]
[361363683,1747516245113,-151.0,0.000248,7]
[361363684,1747516245122,-151.0,0.000248,7]
[361363685,1747516245132,-151.0,0.000248,7]
[361363686,1747516245142,-157.439199,0.000248,7]
[361363687,1747516245152,-151.0,0.000248,7]
[361363688,1747516245161,-151.0,0.000248,7]
[361363689,1747516245171,-192.963156,0.000248,7]
[361363690,1747516245181,-468.739215,0.000248,7]
[361363691,1747516245190,-151.0,0.000248,7]
[361363692,1747516245200,-468.739215,0.000248,7]
[361363693,1747516245209,-151.0,0.000248,7]
[361363694,1747516245220,-151.0,0.000248,7]
[361363695,1747516245230,-300.0,0.00024831,10]
[361363696,1747516245239,-300.0,0.00024831,10]
[361363697,1747516245248,-24683.0163528,0.00024832,2]
[361363698,1747516245258,-4439.3836235,0.00024832,2]
[361363699,1747516245269,-300.0,0.00024848,10]
[361363700,1747516245279,-27524.2440016,0.00024883,2]
[361363701,1747516245289,-26154.3658775,0.00024883,2]
[361363702,1747516245302,-1356.0184569,0.00024883,2]
[361363703,1747516245312,-1285.5416337,0.00024883,2]
[361363704,1747516245322,-300.0,0.00024899,10]
[361363705,1747516245331,-300.0,0.00024899,10]
[361363706,1747516245342,-151.0,0.000249,7]
[361363707,1747516245352,-151.0,0.000249,7]
[361363708,1747516245363,-151.373346,0.000249,7]
[361363709,1747516245375,-151.0,0.000249,7]
[361363710,1747516245385,-151.0,0.000249,7]
[361363711,1747516245395,-151.0,0.000249,7]
[361363712,1747516245405,-151.0,0.000249,7]
[361363713,1747516245415,-300.104305,0.000249,7]
[361363714,1747516245425,-151.0,0.000249,7]
[361363715,1747516245435,-151.0,0.000249,7]
[361363716,1747516245445,-151.0,0.000249,7]
[361363718,1747516245455,-151.0,0.000249,7]
[361363720,1747516245465,-151.0,0.000249,7]
[361363722,1747516245474,-151.0,0.000249,7]
[361363724,1747516245484,-151.0,0.000249,7]
[361363726,1747516245494,-151.0,0.000249,7]
[361363727,1747516245503,-151.0,0.000249,7]
[361363729,1747516245513,-151.0,0.000249,7]
[361363730,1747516245523,-151.0,0.000249,7]
[361363732,1747516245532,-151.0,0.000249,7]
[361363735,1747516245542,-151.0,0.000249,7]
[361363736,1747516245553,-151.212428,0.000249,7]
[361363738,1747516245563,-151.0,0.000249,7]
[361363740,1747516245572,-151.0,0.000249,7]
[361363742,1747516245583,-151.0,0.000249,7]
[361363744,1747516245592,-266.084963,0.000249,7]
[361363746,1747516245602,-151.0,0.000249,7]
[361363748,1747516245614,-151.0,0.000249,7]
[361363750,1747516245624,-266.084963,0.000249,7]
[361363752,1747516245634,-155.045479,0.000249,7]
[361363754,1747516245644,-151.0,0.000249,7]
[361363756,1747516245654,-151.0,0.000249,7]
[361363758,1747516245664,-258.785476,0.000249,7]
[361363760,1747516245674,-151.0,0.000249,7]
[361363762,1747516245684,-151.0,0.000249,7]
[361363764,1747516245693,-455.590624,0.000249,7]
[361363766,1747516245703,-455.590624,0.000249,7]
[361363768,1747516245713,-151.0,0.000249,7]
[361363770,1747516245723,-151.0,0.000249,7]
[361363771,1747516245732,-151.0,0.000249,7]
[361363772,1747516245742,-151.0,0.000249,7]
[361363773,1747516245752,-151.0,0.000249,7]
[361363774,1747516245761,-151.0,0.000249,7]
[361363775,1747516245771,-156.257322,0.000249,7]
[361363776,1747516245780,-151.0,0.000249,7]
[361363777,1747516245790,-151.0,0.000249,7]
[361363778,1747516245799,-151.0,0.000249,7]
[361363779,1747516245808,-151.0,0.000249,7]
[361363780,1747516245818,-176.83018,0.000249,7]
[361363781,1747516245828,-151.0,0.000249,7]
[361363782,1747516245838,-151.0,0.000249,7]
[361363783,1747516245847,-151.0,0.000249,7]
[361363784,1747516245857,-843.01902,0.000249,7]
[361363785,1747516245867,-843.01902,0.000249,7]
[361363786,1747516245878,-151.0,0.000249,7]
[361363787,1747516245889,-151.0,0.000249,7]
[361363788,1747516245899,-423.499667,0.000249,7]
[361363789,1747516245909,-423.499667,0.000249,7]
[361363790,1747516245919,-622834.406106,0.000249,3]
[361363791,1747516245928,-151.0,0.000249,7]
[361363792,1747516245941,-151.0,0.000249,7]
[361363793,1747516245951,-151.0,0.000249,7]
[361363794,1747516245960,-151.0,0.000249,7]
[361363795,1747516245970,-150.0,0.00024958,2]
[361363796,1747516245979,-169.01491287,0.00025,5]
[361363797,1747516245989,-500.0,0.00025,2]
[361363798,1747516245998,-1333.33333,0.00025,2]
[361363799,1747516246009,-1413.0,0.00025002,2]
[361363800,1747516246018,-743.34,0.00025205,2]
[361363801,1747516246028,-1413.0,0.00025257,2]
[361363802,1747516246038,-151.0,0.00025279,7]
[361363803,1747516246047,-151.0,0.00025279,7]
[361363804,1747516246057,-151.0,0.00025279,7]
[361363805,1747516246066,-151.0,0.00025279,7]
[361363806,1747516246077,-151.0,0.00025279,7]
[361363807,1747516246087,-151.0,0.00025279,7]
[361363808,1747516246097,-3866.023047,0.00025279,7]
[361363809,1747516246106,-3866.023047,0.00025279,7]
[361363810,1747516246115,-151.0,0.00025279,7]
[361363811,1747516246126,-280.0,0.000253,10]
[361363812,1747516246135,-202.0,0.00025363,18]
[361363813,1747516246145,-1076.0,0.00025381,2]
[361363814,1747516246154,-257.91778498,0.00025474,2]
[361363815,1747516246163,-1413.0,0.00025513,2]
[361363816,1747516246173,-442.08937228,0.00025513,2]
[361363817,1747516246183,-153.15262,0.00025513,7]
[361363818,1747516246192,-153.58199,0.00025513,7]
[361363819,1747516246202,-154.554191,0.00025513,7]
[361363820,1747516246212,-151.0,0.00025513,7]
[361363821,1747516246221,-151.0,0.00025513,7]
[361363822,1747516246231,-151.0,0.00025513,7]
[361363823,1747516246240,-151.0,0.00025513,7]
[361363824,1747516246250,-151.0,0.00025513,7]
[361363825,1747516246259,-1413.0,0.00025768,2]
[361363826,1747516246269,-151.0,0.00025768,7]
[361363827,1747516246279,-151.0,0.00025768,7]
[361363828,1747516246289,-151.0,0.00025768,7]
[361363829,1747516246302,-151.0,0.00025768,7]
[361363830,1747516246311,-151.0,0.00025768,7]
[361363831,1747516246321,-151.0,0.00025768,7]
[361363832,1747516246330,-452.72,0.000258,2]
[361363833,1747516246339,-153.89,0.000258,2]
[361363834,1747516246349,-352.99,0.000258,2]
[361363835,1747516246359,-320.51,0.000258,2]
[361363836,1747516246368,-4000.0,0.00026,4]
[361363837,1747516246378,-1413.0,0.00026023,2]
[361363838,1747516246387,-150.0,0.00026164,2]
[361363839,1747516246396,-202.0,0.00026251,19]
[361363840,1747516246405,-1413.0,0.00026278,2]
[361363841,1747516246415,-150.0,0.00026301,2]
[361363842,1747516246425,-150.0,0.00026328,2]
[361363843,1747516246435,-150.0,0.00026438,2]
[361363844,1747516246444,-1549.66,0.000266,7]
[361363845,1747516246454,-151.0,0.000266,7]
[361363846,1747516246465,-468.739215,0.000266,7]
[361363847,1747516246474,-468.739215,0.000266,7]
[361363848,1747516246484,-1176.6,0.00026649,2]
[361363849,1747516246494,-1073.0,0.0002665,2]
[361363850,1747516246504,-269.69,0.00026676,2]
[361363851,1747516246514,-1690.07,0.00026739,2]
[361363852,1747516246524,-267.46074303,0.00026843,2]
[361363853,1747516246534,-521.89545549,0.00026872,2]
[361363854,1747516246544,-309.93556122,0.00026999,10]
[361363855,1747516246555,-23260.53678567,0.00027,2]
[361363856,1747516246565,-550.0,0.00027,2]
[361363857,1747516246574,-202.0,0.00027139,20]
[361363858,1747516246584,-151.0,0.00027378,7]
[361363859,1747516246593,-151.0,0.00027378,7]
[361363860,1747516246603,-151.0,0.00027378,7]
[361363861,1747516246612,-151.0,0.00027378,7]
[361363862,1747516246622,-151.0,0.00027378,7]
[361363863,1747516246632,-151.0,0.00027378,7]
[361363864,1747516246641,-151.0,0.00027378,7]
[361363865,1747516246651,-151.0,0.00027378,7]
[361363866,1747516246660,-151.0,0.00027378,7]
[361363867,1747516246670,-151.0,0.00027378,7]
[361363868,1747516246679,-151.0,0.00027378,7]
[361363869,1747516246689,-151.0,0.00027378,7]
[361363870,1747516246698,-151.0,0.00027378,7]
[361363871,1747516246707,-157.975957,0.00027378,7]
[361363872,1747516246717,-157.975957,0.00027378,7]
[361363873,1747516246726,-151.0,0.00027378,7]
[361363874,1747516246736,-331.261018,0.00027378,7]
[361363875,1747516246746,-331.261018,0.00027378,7]
[361363876,1747516246755,-151.0,0.00027378,7]
[361363877,1747516246765,-151.0,0.00027378,7]
[361363878,1747516246774,-163.259549,0.00027378,7]
[361363879,1747516246784,-163.259549,0.00027378,7]
[361363880,1747516246794,-3466.13199461,0.0002739,2]
[361363881,1747516246804,-151.0,0.0002739,7]
[361363882,1747516246814,-151.0,0.00027395,7]
[361363883,1747516246824,-151.494778,0.00027397,7]
[361363884,1747516246833,-500.0,0.00027397,2]
[361363885,1747516246843,-150.0,0.00027397,2]
[361363886,1747516246852,-303.951239,0.00027397,7]
[361363887,1747516246862,-303.951239,0.00027397,7]
[361363888,1747516246872,-500.0,0.00027397,2]
[361363889,1747516246882,-160.5415912,0.00027397,2]
[361363890,1747516246892,-416.0,0.00027397,2]
[361363891,1747516246902,-185.00614724,0.00027397,2]
[361363892,1747516246913,-500.0,0.00027397,2]
[361363893,1747516246923,-248.52116044,0.00027397,2]
[361363894,1747516246932,-500.0,0.00027397,2]
[361363895,1747516246944,-545.0,0.00027397,2]
[361363896,1747516246954,-846.0,0.00027397,2]
[361363897,1747516246963,-150.0,0.00027397,2]
[361363898,1747516246973,-150.0,0.00027397,2]
[361363899,1747516246983,-150.0,0.00027397,2]
[361363900,1747516246994,-500.0,0.00027397,2]
[361363901,1747516247003,-500.0,0.00027397,2]
[361363902,1747516247014,-640.48601947,0.00027397,2]
[361363903,1747516247024,-500.0,0.00027397,2]
[361363904,1747516247034,-500.0,0.00027397,2]
[361363905,1747516247044,-500.0,0.00027397,2]
[361363906,1747516247054,-500.0,0.00027397,2]
[361363907,1747516247064,-200.0,0.00027397,60]
[361363908,1747516247074,-300.0,0.00027397,2]
[361363909,1747516247084,-151.0,0.00027397,7]
[361363910,1747516247094,-151.0,0.00027397,7]
[361363911,1747516247103,-182.136986,0.00027397,7]
[361363912,1747516247112,-182.136986,0.00027397,7]
[361363913,1747516247121,-182.136986,0.00027397,7]
[361363914,1747516247130,-182.136986,0.00027397,7]
[361363915,1747516247139,-172.0,0.00027397,2]
[361363916,1747516247149,-184.76799716,0.00027397,2]
[361363917,1747516247158,-381.0,0.000274,2]
[361363918,1747516247168,-955.0,0.000274,2]
[361363919,1747516247177,-522.0,0.000274,2]
[361363920,1747516247187,-151.0,0.00027424,7]
[361363921,1747516247196,-151.0,0.00027424,7]
[361363922,1747516247206,-151.0,0.00027424,7]
[361363923,1747516247216,-408.076114,0.00027424,7]
[361363924,1747516247226,-408.076114,0.00027424,7]
[361363925,1747516247235,-642.52348154,0.00027424,2]
[361363926,1747516247244,-150.0,0.00027424,2]
[361363927,1747516247254,-500.0,0.00027424,2]
[361363928,1747516247263,-416.0,0.00027424,2]
[361363929,1747516247273,-505.5437678,0.00027424,2]
[361363930,1747516247283,-500.0,0.00027424,2]
[361363931,1747516247295,-545.0,0.00027424,2]
[361363932,1747516247304,-846.0,0.00027424,2]
[361363933,1747516247314,-190.58333394,0.00027424,2]
[361363934,1747516247323,-221.69998245,0.00027424,2]
[361363935,1747516247332,-500.0,0.00027424,2]
[361363936,1747516247342,-150.0,0.00027452,2]
[361363937,1747516247352,-559.19560052,0.00027452,2]
[361363938,1747516247361,-416.0,0.00027452,2]
[361363939,1747516247371,-512.47967246,0.00027452,2]
[361363940,1747516247381,-545.0,0.00027452,2]
[361363941,1747516247391,-846.0,0.00027452,2]
[361363942,1747516247401,-500.0,0.00027452,2]
[361363943,1747516247411,-263.711982,0.00027452,7]
[361363944,1747516247420,-151.0,0.00027452,7]
[361363945,1747516247431,-263.711982,0.00027452,7]
[361363946,1747516247440,-205.48194,0.00027452,7]
[361363947,1747516247450,-151.0,0.00027452,7]
[361363948,1747516247460,-174.347394,0.00027452,7]
[361363949,1747516247469,-174.347394,0.00027452,7]
[361363950,1747516247479,-203.21602,0.00027479,2]
[361363951,1747516247488,-416.0,0.00027479,2]
[361363952,1747516247498,-545.0,0.00027479,2]
[361363953,1747516247508,-846.0,0.00027479,2]
[361363954,1747516247517,-500.0,0.00027479,2]
[361363955,1747516247527,-416.0,0.00027507,2]
[361363956,1747516247537,-545.0,0.00027507,2]
[361363957,1747516247547,-846.0,0.00027507,2]
[361363958,1747516247558,-500.0,0.00027507,2]
[361363959,1747516247568,-416.0,0.00027534,2]
[361363960,1747516247577,-545.0,0.00027534,2]
[361363961,1747516247587,-846.0,0.00027534,2]
[361363962,1747516247597,-500.0,0.00027534,2]
[361363963,1747516247607,-416.0,0.00027561,2]
[361363964,1747516247617,-545.0,0.00027561,2]
[361363965,1747516247627,-846.0,0.00027561,2]
[361363966,1747516247637,-500.0,0.00027561,2]
[361363967,1747516247647,-416.0,0.00027589,2]
[361363968,1747516247657,-545.0,0.00027589,2]
[361363969,1747516247667,-846.0,0.00027589,2]
[361363970,1747516247676,-500.0,0.00027589,2]
[361363971,1747516247686,-416.0,0.00027616,2]
[361363972,1747516247696,-545.0,0.00027616,2]
[361363973,1747516247706,-846.0,0.00027616,2]
[361363974,1747516247716,-500.0,0.00027616,2]
[361363975,1747516247725,-416.0,0.00027644,2]
[361363976,1747516247734,-545.0,0.00027644,2]
[361363977,1747516247744,-846.0,0.00027644,2]
[361363978,1747516247754,-567.68388171,0.00027644,2]
[361363979,1747516247764,-416.0,0.00027671,2]
[361363980,1747516247773,-545.0,0.00027671,2]
[361363981,1747516247783,-846.0,0.00027671,2]
[361363982,1747516247793,-150.0,0.00027698,2]
[361363983,1747516247804,-416.0,0.00027698,2]
[361363984,1747516247813,-545.0,0.00027698,2]
[361363985,1747516247823,-846.0,0.00027698,2]
[361363986,1747516247832,-416.0,0.00027726,2]
[361363987,1747516247842,-545.0,0.00027726,2]
[361363988,1747516247852,-846.0,0.00027726,2]
[361363989,1747516247861,-416.0,0.00027753,2]
[361363990,1747516247870,-545.0,0.00027753,2]
[361363991,1747516247880,-846.0,0.00027753,2]
[361363992,1747516247889,-416.0,0.00027781,2]
[361363993,1747516247899,-545.0,0.00027781,2]
[361363994,1747516247909,-846.0,0.00027781,2]
[361363995,1747516247918,-416.0,0.00027808,2]
[361363996,1747516247928,-545.0,0.00027808,2]
[361363997,1747516247938,-846.0,0.00027808,2]
[361363998,1747516247949,-191.0,0.0002783,15]
[361363999,1747516247959,-416.0,0.00027835,2]
[361364000,1747516247969,-545.0,0.00027835,2]
[361364001,1747516247979,-846.0,0.00027835,2]
[361364002,1747516247989,-416.0,0.00027863,2]
[361364003,1747516248290,-545.0,0.00027863,2]
[361364004,1747516248305,-846.0,0.00027863,2]
[361364005,1747516248315,-356.31836413,0.00027881,2]
[361364006,1747516248325,-416.0,0.0002789,2]
[361364007,1747516248335,-545.0,0.0002789,2]
[361364008,1747516248345,-846.0,0.0002789,2]
[361364009,1747516248355,-416.0,0.00027918,2]
[361364010,1747516248364,-545.0,0.00027918,2]
[361364011,1747516248375,-846.0,0.00027918,2]
[361364012,1747516248385,-416.0,0.00027945,2]
[361364013,1747516248395,-545.0,0.00027945,2]
[361364014,1747516248405,-846.0,0.00027945,2]
[361364015,1747516248414,-23454.5457674,0.00027968,2]
[361364016,1747516248424,-4218.436065,0.00027968,2]
[361364017,1747516248434,-5800.0,0.0002797,2]
[361364018,1747516248444,-416.0,0.00027972,2]
[361364019,1747516248454,-545.0,0.00027972,2]
[361364020,1747516248463,-846.0,0.00027972,2]
[361364021,1747516248473,-5800.0,0.00027979,2]
[361364022,1747516248483,-5800.0,0.00027979,2]
[361364023,1747516248492,-5800.0,0.00027987,2]
[361364024,1747516248503,-5800.0,0.00027987,2]
[361364025,1747516248513,-5800.0,0.00027987,2]
[361364026,1747516248524,-416.0,0.00028,2]
[361364027,1747516248534,-545.0,0.00028,2]
[361364028,1747516248544,-846.0,0.00028,2]
[361364029,1747516248554,-438.30935743,0.00028027,2]
[361364030,1747516248564,-552.42777162,0.00028027,2]
[361364031,1747516248574,-862.0,0.00028027,2]
[361364032,1747516248584,-202.0,0.00028027,21]
[361364033,1747516248594,-277.35679052,0.00028212,2]
[361364034,1747516248605,-899.36563778,0.00028494,2]
[361364035,1747516248615,-759.58834404,0.00028494,2]
[361364036,1747516248625,-372.91752936,0.00028494,2]
[361364037,1747516248635,-3956.43534717,0.000287,2]
[361364038,1747516248646,-202.0,0.00028915,22]
[361364039,1747516248656,-7510.15,0.00029,2]
[361364040,1747516248666,-151.08,0.00029,2]
[361364041,1747516248676,-151.08,0.00029,2]
[361364042,1747516248685,-600.0,0.00029,2]
[361364043,1747516248695,-4000.0,0.00029,4]
[361364044,1747516248704,-1690.07,0.00029003,2]
[361364045,1747516248715,-150.0,0.00029067,2]
[361364046,1747516248724,-287.61899177,0.00029581,2]
[361364047,1747516248734,-202.0,0.00029803,23]
[361364048,1747516248744,-875.95415028,0.0003,2]
[361364049,1747516248753,-2392.07499263,0.0003,3]
[361364050,1747516248762,-399.999999,0.0003,2]
[361364051,1747516248771,-5000.0,0.0003,3]
[361364052,1747516248781,-1333.33334,0.0003,2]
[361364053,1747516248791,-905.9,0.00030027,2]
[361364054,1747516248800,-521.89545549,0.00030116,15]
[361364055,1747516248810,-157.96,0.00030137,2]
[361364056,1747516248819,-451.19,0.00030275,2]
[361364057,1747516248829,-150.0,0.00030437,2]
[361364058,1747516248839,-202.0,0.00030692,24]
[361364059,1747516248849,-253.22,0.000308,2]
[361364060,1747516248858,-196.17,0.000308,2]
[361364061,1747516248868,-1135.12,0.000308,2]
[361364062,1747516248877,-171.82,0.00030822,45]
[361364063,1747516248887,-298.26089446,0.0003095,2]
[361364064,1747516248896,-700.0,0.00030959,11]
[361364065,1747516248905,-700.0,0.00030959,11]
[361364066,1747516248915,-700.0,0.00030959,11]
[361364067,1747516248924,-700.0,0.00030959,11]
[361364068,1747516248934,-700.0,0.00030959,11]
[361364069,1747516248943,-700.0,0.00030959,11]
[361364070,1747516248953,-700.0,0.00030959,11]
[361364071,1747516248962,-700.0,0.00030959,11]
[361364072,1747516248972,-700.0,0.00030959,11]
[361364073,1747516248981,-700.0,0.00030959,11]
[361364074,1747516248991,-24784.4877534,0.00030979,2]
[361364075,1747516249000,-1215.0648105,0.00030979,2]
[361364076,1747516249010,-229487.28296597,0.00031,120]
[361364077,1747516249019,-329.24365008,0.00031,5]
[361364078,1747516249029,-2044.0,0.00031,30]
[361364079,1747516249038,-151.0,0.00031,7]
[361364080,1747516249048,-151.0,0.00031,7]
[361364081,1747516249057,-151.0,0.00031,7]
[361364082,1747516249067,-151.0,0.00031,7]
[361364083,1747516249076,-151.0,0.00031,7]
[361364084,1747516249086,-151.0,0.00031,7]
[361364085,1747516249095,-151.0,0.00031,7]
[361364086,1747516249105,-162.213157,0.00031,7]
[361364087,1747516249114,-151.0,0.00031,7]
[361364088,1747516249124,-151.0,0.00031,7]
[361364089,1747516249133,-151.0,0.00031,7]
[361364090,1747516249142,-151.0,0.00031,7]
[361364091,1747516249152,-151.0,0.00031,7]
[361364092,1747516249161,-151.0,0.00031,7]
[361364093,1747516249170,-157.975957,0.00031,7]
[361364094,1747516249180,-157.975957,0.00031,7]
[361364095,1747516249189,-263.711982,0.00031,7]
[361364096,1747516249199,-151.0,0.00031,7]
[361364097,1747516249208,-263.711982,0.00031,7]
[361364098,1747516249218,-151.0,0.00031,7]
[361364099,1747516249227,-151.0,0.00031,7]
[361364100,1747516249237,-331.261018,0.00031,7]
[361364101,1747516249246,-331.261018,0.00031,7]
[361364102,1747516249255,-151.0,0.00031,7]
[361364103,1747516249264,-151.0,0.00031,7]
[361364104,1747516249274,-174.347394,0.00031,7]
[361364105,1747516249283,-174.347394,0.00031,7]
[361364106,1747516249295,-650.0,0.00031,2]
[361364107,1747516249306,-303.951239,0.00031,7]
[361364108,1747516249316,-303.951239,0.00031,7]
[361364109,1747516249326,-151.0,0.00031,7]
[361364110,1747516249335,-163.259549,0.00031,7]
[361364111,1747516249347,-163.259549,0.00031,7]
[361364112,1747516249356,-151.0,0.00031,7]
[361364113,1747516249365,-153.062113,0.00031,7]
[361364114,1747516249377,-266.084963,0.00031,7]
[361364115,1747516249387,-266.084963,0.00031,7]
[361364116,1747516249396,-151.0,0.00031,7]
[361364117,1747516249406,-151.0,0.00031,7]
[361364118,1747516249415,-151.0,0.00031,7]
[361364119,1747516249425,-284.49536,0.00031,7]
[361364120,1747516249434,-455.590624,0.00031,7]
[361364121,1747516249444,-455.590624,0.00031,7]
[361364122,1747516249454,-151.0,0.00031,7]
[361364123,1747516249464,-151.0,0.00031,7]
[361364124,1747516249473,-151.0,0.00031,7]
[361364125,1747516249483,-151.0,0.00031,7]
[361364126,1747516249493,-151.0,0.00031,7]
[361364127,1747516249502,-151.0,0.00031,7]
[361364128,1747516249512,-158.16122,0.00031,7]
[361364129,1747516249522,-151.0,0.00031,7]
[361364130,1747516249531,-151.0,0.00031,7]
[361364131,1747516249541,-151.0,0.00031,7]
[361364132,1747516249550,-151.0,0.00031,7]
[361364133,1747516249560,-153.385844,0.00031,7]
[361364134,1747516249570,-151.0,0.00031,7]
[361364135,1747516249579,-843.01902,0.00031,7]
[361364136,1747516249589,-843.01902,0.00031,7]
[361364137,1747516249598,-151.0,0.00031,7]
[361364138,1747516249608,-217.505055,0.00031,7]
[361364139,1747516249617,-295.392023,0.00031,7]
[361364140,1747516249626,-151.0,0.00031,7]
[361364141,1747516249636,-151.0,0.00031,7]
[361364142,1747516249645,-151.0,0.00031,7]
[361364143,1747516249655,-423.499667,0.00031,7]
[361364144,1747516249664,-151.0,0.00031,7]
[361364145,1747516249674,-151.0,0.00031,7]
[361364146,1747516249684,-151.0,0.00031,7]
[361364147,1747516249694,-423.499667,0.00031,7]
[361364148,1747516249703,-151.0,0.00031,7]
[361364149,1747516249713,-151.0,0.00031,7]
[361364150,1747516249722,-151.0,0.00031,7]
[361364151,1747516249731,-151.0,0.00031,7]
[361364152,1747516249740,-151.0,0.00031,7]
[361364153,1747516249751,-151.0,0.00031,7]
[361364154,1747516249760,-182.136986,0.00031,7]
[361364155,1747516249770,-182.136986,0.00031,7]
[361364156,1747516249779,-3866.023047,0.00031,7]
[361364157,1747516249788,-3866.023047,0.00031,7]
[361364158,1747516249798,-151.0,0.00031,7]
[361364159,1747516249807,-151.0,0.00031,7]
[361364160,1747516249817,-151.0,0.00031,7]
[361364161,1747516249826,-151.0,0.00031,7]
[361364162,1747516249836,-151.0,0.00031,7]
[361364163,1747516249845,-468.739215,0.00031,7]
[361364164,1747516249855,-151.0,0.00031,7]
[361364165,1747516249864,-468.739215,0.00031,7]
[361364166,1747516249873,-151.0,0.00031,7]
[361364167,1747516249883,-151.0,0.00031,7]
[361364168,1747516249892,-1690.07,0.00031267,2]
[361364169,1747516249902,-253.22,0.000315,2]
[361364170,1747516249913,-196.17,0.000315,2]
[361364171,1747516249923,-1135.12,0.000315,2]
[361364172,1747516249933,-202.0,0.0003158,25]
[361364173,1747516249943,-500.0,0.00031707,7]
[361364174,1747516249952,-500.0,0.00031731,7]
[361364175,1747516249962,-500.0,0.00031752,7]
[361364176,1747516249972,-150.0,0.00031807,2]
[361364177,1747516249981,-150.2,0.00031913,2]
[361364178,1747516249991,-911.68,0.00031913,2]
[361364179,1747516250000,-705.98,0.00031913,2]
[361364180,1747516250010,-162.71,0.00031913,2]
[361364181,1747516250019,-500.0,0.00031983,7]
[361364182,1747516250028,-227.11753218,0.00032,15]
[361364183,1747516250038,-208.6,0.00032,7]
[361364184,1747516250048,-4000.0,0.00032,4]
[361364185,1747516250058,-500.0,0.00032147,7]
[361364186,1747516250068,-253.22,0.000323,2]
[361364187,1747516250078,-196.17,0.000323,2]
[361364188,1747516250087,-1135.12,0.000323,2]
[361364189,1747516250097,-309.29654756,0.00032319,2]
[361364190,1747516250107,-500.0,0.00032367,7]
[361364191,1747516250117,-202.0,0.00032468,26]
[361364192,1747516250127,-164.3493049,0.00032487,7]
[361364193,1747516250136,-500.0,0.00032532,7]
[361364194,1747516250146,-150.0,0.000326,2]
[361364195,1747516250156,-500.0,0.00032686,7]